Cogmind - Beta 15 *** ADVENTURER MODE // 2025.10.01 @ 21:58:28 // Winter2019/RPGLIKE Player: Lava Result: Destroyed by M Guard with Ragnarok Missile Launcher Performance ------------- Evolutions (9) 4500 Regions Visited (16) 3200 Robots Destroyed (251) 1255 Value Destroyed (14088) 14088 Prototype IDs (43) 860 Alien Tech Used (1) 200 Bonus (7131) 7131 TOTAL SCORE: 31234 Bonus ------- High Alert Combat Kills 158 Follower Combat Kills 373 Forged Quantum Companion 1000 Entered DSFs 500 Registered with UFD 300 Met Optimus in HQ 500 Met Zhirov 300 Acquired SGEMP 2000 Delivered SGEMP 2000 Cogmind --------- Core Integrity 0/1100 Matter 290/300 Energy 383/490 System Corruption 8% Temperature Cool (9) Movement Walking (220) Location -1/Command Parts ------- > --- POWER (1+1) ------ Micro Fission Core (+) Heavy Antimatter Reactor > --- PROPULSION (4) --- Multireflex Exoskeleton Enhanced Multireflex Exoskeleton > --- UTILITY (13) ----- Advanced Power Amplifier Advanced Signal Interpreter Improved Terrain Scanner (fused) Microactuators Nanoactuators Advanced Force Booster Graphene Brace Improved Focal Shield Advanced Thermal Shield Experimental Hacking Suite Experimental Hacking Suite Experimental System Shield > --- WEAPON (4) ------- Powered Cannon Molecular Scythe Quantum Companion > --- INVENTORY (5) ---- Protomatter-88 Protomatter-87 Transdimensional Reconstructor Peak State ------------ > --- POWER ------------ Micro Fission Core Heavy Antimatter Reactor > --- PROPULSION ------- Multireflex Exoskeleton Enhanced Multireflex Exoskeleton > --- UTILITY ---------- Advanced Power Amplifier Advanced Signal Interpreter Improved Terrain Scanner Microactuators Nanoactuators Advanced Force Booster Enhanced Scrap Shield Improved Focal Shield Advanced Thermal Shield Experimental Hacking Suite Experimental Hacking Suite Experimental System Shield > --- WEAPON ----------- Powered Cannon Molecular Scythe Quantum Companion > --- INVENTORY -------- Protomatter Transdimensional Reconstructor SGEMP Prototype [Rating: 166] Favorites ----------- Power Micro Fission Core Engine Light Ion Engine Power Core Micro Fission Core Reactor Heavy Antimatter Reactor Propulsion Light Treads Treads Light Treads Leg Advanced VSS Leg Flight Unit Cooled Nuclear Pulse Thruster Utility Terrain Scanner Device Terrain Scanner Processor Advanced Signal Interpreter Hackware Makeshift System Shield Protection Enhanced Scrap Shield Weapon Powered Cannon Energy Cannon Powered Cannon Ballistic Gun Assault Rifle Slashing Weapon Companion Sword Build | -11 -10 -10 -7 -7 -5 -5 -5 -5 -4 -4 -4 -3 -3 -2 -1 -1 ------- Run | Yrd Mat Sub Rec Scr Fac Upp Upp Zhi Pro Fac DSF Res Tes Res Acc Com Slots Evolved 18 | 3 . 3 4 . 3 1 . . 1 . . 2 1 . . . Power . | . . . . . . . . . . . . . . . . . Propulsion 3 | 1 . . . . 1 . . . 1 . . . . . . . Utility 12 | 1 . 2 4 . 2 1 . . . . . 2 . . . . Weapon 3 | 1 . 1 . . . . . . . . . . 1 . . . Parts Attached 63 | 5 4 5 4 3 10 2 . 7 1 . 4 4 9 4 . 1 Power 5 | 1 . . . . 2 . . 1 . . . . . 1 . . Engine 1 | 1 . . . . . . . . . . . . . . . . Core 2 | . . . . . 2 . . . . . . . . . . . Reactor 2 | . . . . . . . . 1 . . . . . 1 . . Propulsion 14 | 2 . . . . 1 . . 3 1 . 4 . 2 1 . . Treads 4 | 2 . . . . 1 . . . 1 . . . . . . . Leg 7 | . . . . . . . . . . . 4 . 2 1 . . Wheel . | . . . . . . . . . . . . . . . . . Hover . | . . . . . . . . . . . . . . . . . Flight 3 | . . . . . . . . 3 . . . . . . . . Utility 36 | . 3 2 4 2 7 2 . 3 . . . 4 6 2 . 1 Device 22 | . 1 1 2 1 5 1 . 1 . . . 4 4 1 . 1 Storage . | . . . . . . . . . . . . . . . . . Processor 4 | . 2 . . 1 1 . . . . . . . . . . . Hackware 7 | . . . 2 . 1 . . 1 . . . . 2 1 . . Protection 3 | . . 1 . . . 1 . 1 . . . . . . . . Artifact . | . . . . . . . . . . . . . . . . . Weapon 8 | 2 1 3 . 1 . . . . . . . . 1 . . . Energy Gun . | . . . . . . . . . . . . . . . . . Energy Cannon 1 | . . 1 . . . . . . . . . . . . . . Ballistic Gun 3 | 2 . 1 . . . . . . . . . . . . . . Ballistic Cannon . | . . . . . . . . . . . . . . . . . Launcher . | . . . . . . . . . . . . . . . . . Special Weapon . | . . . . . . . . . . . . . . . . . Impact Weapon . | . . . . . . . . . . . . . . . . . Slashing Weapon 4 | . 1 1 . 1 . . . . . . . . 1 . . . Piercing Weapon . | . . . . . . . . . . . . . . . . . Special Melee Weapon . | . . . . . . . . . . . . . . . . . Unidentified Prototypes 11 | . . . . 1 . 1 . 5 . . . . 3 1 . . Parts Lost 1 | . . . . . . . . . . . . . . . . 1 Power . | . . . . . . . . . . . . . . . . . Propulsion . | . . . . . . . . . . . . . . . . . Utility 1 | . . . . . . . . . . . . . . . . 1 Weapon . | . . . . . . . . . . . . . . . . . Highest Loss Streak 1 | . . . . . . . . . . . . . . . . 1 To Critical Strikes . | . . . . . . . . . . . . . . . . . Average Backups 1 | . . 2 2 2 2 1 1 . 1 1 1 1 1 1 1 1 Power . | . . . . . . . . . . . . . . . . . Propulsion . | . . . . . . . . . . . . . . . . . Utility . | . . . 1 1 1 1 1 . . . . . . . . . Weapon . | . . 1 1 1 . . . . . . . . . . . . Tool/Special . | . . . . . . . . . . . . . . . . . Unused Backups 7 | . . 2 1 . 1 . . 1 . . . . 1 . . 1 Power . | . . . . . . . . . . . . . . . . . Propulsion . | . . . . . . . . . . . . . . . . . Utility 5 | . . 1 1 . 1 . . 1 . . . . 1 . . . Weapon 1 | . . 1 . . . . . . . . . . . . . . Tool/Special 1 | . . . . . . . . . . . . . . . . 1 Average Slot Usage (%) 81 | . 98 75 77 78 81 77 78 82 78 80 82 89 89 85 82 82 Engine 3 | . 14 9 6 6 . . . . . . . . . . . . Core 4 | . . . . . 8 10 10 9 5 5 5 4 4 4 4 4 Reactor 1 | . . . . . . . . . 5 5 5 4 4 4 4 4 Treads 9 | . 28 19 13 13 5 5 5 2 8 10 6 . . . . . Leg 3 | . . . . . . . . . . . 6 18 16 12 8 8 Device 25 | . 13 10 19 20 35 30 31 30 30 30 30 32 31 29 30 30 Processor 6 | . 13 9 6 6 6 5 5 5 5 5 5 4 4 4 4 4 Hackware 8 | . . . 10 13 11 10 10 10 10 10 10 9 11 13 13 13 Protection 4 | . . 7 6 4 . 4 5 5 5 5 5 4 4 4 4 3 Energy Cannon 5 | . . 8 6 6 5 5 5 5 5 5 5 4 4 4 4 4 Ballistic Gun 2 | . 27 6 . . . . . . . . . . . . . . Slashing Weapon 5 | . . 4 6 6 5 5 5 5 5 5 5 4 7 8 8 8 Peak Build Rating 166 | 5 8 27 42 46 85 96 96 108 121 121 125 141 163 166 165 165 Average Rating 82 | 3 7 24 39 45 75 94 96 102 116 121 121 133 158 162 164 164 On Entrance 88 | . 5 7 27 42 46 85 96 96 102 121 121 125 141 160 164 165 Naked Turns . | . . . . . . . . . . . . . . . . . Heaviest Build 74 | 7 8 34 35 35 38 54 54 62 62 60 60 68 74 74 74 74 Greatest Support 140 | 40 40 40 40 40 70 70 70 70 140 140 140 72 82 86 86 86 Greatest Overweight (x) 17 | 1 . . . . . . . 17 . . 3 . . . . . Average Overweight (x) . | . . . . . . . . 2 . . . . . . . . Largest Inventory Capacity 5 | 3 3 3 3 3 3 3 3 3 3 3 3 3 3 4 5 5 Average Capacity 3 | 3 3 3 3 3 3 3 3 3 3 3 3 3 3 3 4 5 Most Carried 5 | 3 3 3 3 3 3 3 3 3 3 3 3 3 3 4 3 5 Average Carried 2 | . 1 2 2 2 2 2 3 2 2 3 3 2 2 3 2 3 Final Capacity 5 | 3 3 3 3 3 3 3 3 3 3 3 3 3 3 4 5 5 Final Carried 4 | . 1 3 3 2 3 3 3 3 3 3 3 2 3 4 3 3 Class Distribution -------------------- 59% | Hacker-Assassin 17% | Hacker-Gladiator 13% | Skirmisher 8% | Assassin Dominant Class ---------------- Skirmisher | -10/Materials Skirmisher | -10/Subcaves Hacker-Assassin | -7/Recycling Hacker-Assassin | -7/Scraptown Hacker-Assassin | -5/Factory Hacker-Assassin | -5/Upper Caves Hacker-Assassin | -5/Upper Caves Hacker-Assassin | -5/Zhirov Hacker-Assassin | -4/Proximity Caves Hacker-Assassin | -4/Factory Hacker-Assassin | -4/DSF Hacker-Assassin | -3/Research Hacker-Gladiator | -3/Testing Hacker-Gladiator | -2/Research Hacker-Gladiator | -1/Access Hacker-Gladiator | -1/Command Resources | -11 -10 -10 -7 -7 -5 -5 -5 -5 -4 -4 -4 -3 -3 -2 -1 -1 ----------- Run | Yrd Mat Sub Rec Scr Fac Upp Upp Zhi Pro Fac DSF Res Tes Res Acc Com Matter Collected 2109 | 223 359 311 40 10 242 117 26 . 305 . 40 118 191 127 . . Remotely . | . . . . . . . . . . . . . . . . . Salvage Created 11993 | . 455 440 93 . 1623 360 141 . 1380 . 320 2120 1416 2378 234 1033 Parts 701 | . 25 54 10 . 97 25 6 . 66 . 15 94 98 131 17 63 Haulers Intercepted . | . . . . . . . . . . . . . . . . . Recyclers Shooed . | . . . . . . . . . . . . . . . . . Parts Field Recycled . | . . . . . . . . . . . . . . . . . Retrieved Matter . | . . . . . . . . . . . . . . . . . Parts Self-Destructed 138 | . . 26 . . . 41 6 . 65 . . . . . . . Prevented 2 | . . . . . . . . . 2 . . . . . . . Kills | -11 -10 -10 -7 -7 -5 -5 -5 -5 -4 -4 -4 -3 -3 -2 -1 -1 ------- Run | Yrd Mat Sub Rec Scr Fac Upp Upp Zhi Pro Fac DSF Res Tes Res Acc Com Combat Hostiles Destroyed 219 | . 11 22 3 . 31 12 5 . 31 . 3 29 23 30 8 11 Melee 91 | . . 1 . . 10 5 . . 6 . . 9 21 23 6 10 Guns 18 | . 11 7 . . . . . . . . . . . . . . Cannons 88 | . . 13 2 . 19 7 5 . 20 . 3 14 . 3 2 . Classes Destroyed 20 | . 3 2 1 . 5 . . . 4 . 1 . 3 1 . . Worker 2 | . . . . . 1 . . . . . . . 1 . . . Builder 2 | . . . . . 1 . . . . . . . 1 . . . Recycler 2 | . . . . . 1 . . . . . . . 1 . . . Operator 3 | . . . . . 2 . . . . . . . 1 . . . Turret 2 | . . 2 . . . . . . . . . . . . . . Watcher 19 | . 3 . . . 4 . . . . . . 1 3 6 2 . Swarmer 50 | . 3 10 . . 8 5 5 . 12 . . . . . 7 . Grunt 70 | . 8 . . . 12 7 . . 9 . . 7 9 12 . 6 Brawler 2 | . . . . . . . . . 2 . . . . . . . Duelist 1 | . . . . . . . . . 1 . . . . . . . Researcher 2 | . . . . . . . . . . . . . 2 . . . Sentry 16 | . . . 3 . 1 . . . 4 . . 3 . 5 . . Specialist 3 | . . . . . . . . . . . 3 . . . . . Hunter 8 | . . . . . . . . . 2 . . 5 . . 1 . Programmer 46 | . . . . . 10 . . . . . . 10 11 12 . 3 Heavy 1 | . . . . . . . . . . . . . . 1 . . Behemoth 2 | . . . . . . . . . 1 . . 1 . . . . Combat Programmer 2 | . . . . . . . . . . . . . . . . 2 Striker 2 | . . . . . . . . . . . . . 2 . . . Alpha 7 1 | . . . . . . . . . . . . . 1 . . . Subdweller 12 | . . 12 . . . . . . . . . . . . . . Thug 3 | . . . . . . . . . . . . 3 . . . . Best Kill Streak 11 | . 3 3 2 . 5 5 5 . 7 . 3 11 4 6 8 5 Combat Bots Only 11 | . 3 3 2 . 5 5 5 . 7 . 3 11 3 4 7 5 Max Kills in Single Turn 2 | . 1 2 1 . 1 2 1 . 2 . 1 1 1 2 2 1 Gunslinging 1 | . . 1 . . . . . . . . . . . . . . Exploded . | . . . . . . . . . . . . . . . . . Melee 2 | . . 1 . . 1 2 . . 1 . . 1 1 1 1 1 Uniques/NPCs Destroyed . | . . . . . . . . . . . . . . . . . Combat | -11 -10 -10 -7 -7 -5 -5 -5 -5 -4 -4 -4 -3 -3 -2 -1 -1 -------- Run | Yrd Mat Sub Rec Scr Fac Upp Upp Zhi Pro Fac DSF Res Tes Res Acc Com Hostile Shots Fired 1108 | . 68 139 51 . 110 65 23 . 96 . 15 172 96 118 48 107 Missed 314 | . 14 48 13 . 31 17 8 . 29 . 3 52 23 35 18 23 Deflected 29 | . . . . . . . . . 1 . 2 2 2 7 4 11 Hits 794 | . 54 91 38 . 79 48 15 . 67 . 12 120 73 83 30 84 Melee 6 | . . . . . . . . . . . . . 6 . . . Projectile 788 | . 54 91 38 . 79 48 15 . 67 . 12 120 67 83 30 84 AOE 18 | . . . . . . . . . . . . . . . . 18 Critical Strikes 36 | . 2 1 . . 3 1 . . 2 . . 10 7 4 . 6 Actively Blocked 4 | . . . . . . . . . . . . . . . . 4 Part Disruptions 5 | . . . . . 1 . . . . . 2 1 . . . 1 Damage Taken 10074 | . 462 993 249 . 955 450 112 . 633 . 72 1293 1182 1353 303 2017 Core 6538 | . 376 588 146 . 770 253 52 . 369 . 38 772 753 855 179 1387 Absorbed by Shields . | . . . . . . . . . . . . . . . . . Redirected to Core 5248 | . 270 520 126 . 602 226 52 . 320 . 32 633 571 662 133 1101 Ignored by Resistances 6035 | . 144 296 87 . 589 408 107 . 606 . 49 861 613 836 258 1181 Regen/Repaired (Parts) 11 | . . . . . 11 . . . . . . . . . . . Core Remaining (%) 96 | 100 . . . 100 . . . . 100 . 93 . 93 93 . . Volleys Fired 347 | . 47 61 7 . 59 21 6 . 44 . 4 60 21 12 5 . Largest 2 | . 2 2 1 . 1 1 1 . 1 . 1 1 1 1 1 . Hottest 120 | . 40 68 40 . 40 40 40 . 40 . 40 40 120 120 120 . Shots Fired 442 | . 94 99 7 . 60 22 7 2 47 . 4 59 24 12 5 . Gun 146 | . 94 52 . . . . . . . . . . . . . . Cannon 296 | . . 47 7 . 60 22 7 2 47 . 4 59 24 12 5 . Launcher . | . . . . . . . . . . . . . . . . . Special . | . . . . . . . . . . . . . . . . . Kinetic 146 | . 94 52 . . . . . . . . . . . . . . Thermal 296 | . . 47 7 . 60 22 7 2 47 . 4 59 24 12 5 . Explosive . | . . . . . . . . . . . . . . . . . Electromagnetic . | . . . . . . . . . . . . . . . . . Robot Hit Streak 45 | . 16 45 10 . 12 8 3 . 8 . 10 15 15 12 3 . Robot Miss Streak 3 | . 3 3 . . 1 1 2 1 1 . . 1 3 1 1 . Penetration Max . | . . . . . . . . . . . . . . . . . Secondary Targets 1 | . . 1 . . . . . . . . . . . . . . Max Gunslinging Chain 1 | . . 1 . . . . . . . . . . . . . . Autonomous 28 | . . . . . . . . . 5 . . 8 3 4 3 5 Shots Hit Robots 683 | . 65 80 13 . 78 30 4 . 57 . 5 84 89 93 15 70 Core Hits 286 | . 22 29 4 . 44 15 4 . 28 . 3 28 41 37 8 23 Critical Kills 17 | . . 1 1 . 2 . . . 5 . . 7 . 1 . . Critical Parts Destroyed . | . . . . . . . . . . . . . . . . . Critical Strikes 40 | . . 1 4 . 6 . . . 7 . . 11 6 3 . 2 Meltdown 17 | . . 1 1 . 2 . . . 5 . . 7 . 1 . . Sever 3 | . . . 3 . . . . . . . . . . . . . Melee Attacks 469 | . 1 19 6 . 53 14 1 . 22 . 1 42 107 110 23 70 Impact . | . . . . . . . . . . . . . . . . . Slashing 469 | . 1 19 6 . 53 14 1 . 22 . 1 42 107 110 23 70 Piercing . | . . . . . . . . . . . . . . . . . Sneak Attacks 23 | . . . . . 4 1 . . 1 . . 2 11 2 . 2 Combat Hostiles 16 | . . . . . 1 1 . . 1 . . 2 7 2 . 2 Follow-up Attacks 15 | . . . . . . 2 . . 2 . . 1 5 3 . 2 Martial Strikes 12 | . . . . . . . . . . . . . . 1 3 8 Damage Inflicted 42871 | . 822 2577 556 . 4435 1399 281 . 3889 . 309 6309 6607 6492 1495 7700 Guns 1395 | . 822 573 . . . . . . . . . . . . . . Cannons 17884 | . . 1935 343 . 3045 932 281 . 2935 . 251 4301 1821 1110 521 409 Explosions 67 | . . . . . 67 . . . . . . . . . . . Melee 23525 | . . 69 213 . 1323 467 . . 954 . 58 2008 4786 5382 974 7291 Ramming . | . . . . . . . . . . . . . . . . . Kinetic 1395 | . 822 573 . . . . . . . . . . . . . . Thermal 15322 | . . 1935 343 . 3045 932 281 . 2425 . 251 3531 1524 782 273 . Explosive . | . . . . . . . . . . . . . . . . . Electromagnetic 67 | . . . . . 67 . . . . . . . . . . . Impact . | . . . . . . . . . . . . . . . . . Slashing 23525 | . . 69 213 . 1323 467 . . 954 . 58 2008 4786 5382 974 7291 Piercing . | . . . . . . . . . . . . . . . . . Phasic 2562 | . . . . . . . . . 510 . . 770 297 328 248 409 Highest Corruption 12 | . . . . . 4 4 4 4 4 . 1 6 12 5 . 8 Average Corruption 4 | . . . . . 2 4 4 4 4 . 1 4 7 3 . 3 Corruption Purged 8 | . . . . . 1 . . . . . . . 7 . . . Corruption Blocked . | . . . . . . . . . . . . . . . . . Effects 235 | . . . . . 25 39 22 14 37 . . 19 49 25 . 5 Message Errors 52 | . . . . . 10 11 5 1 3 . . 1 15 5 . 1 Matter Fused 67 | . . . . . 9 9 3 7 14 . . 9 9 7 . . Heat Flow Errors 32 | . . . . . 3 7 4 . 6 . . 1 4 4 . 3 Energy Discharges 28 | . . . . . 2 4 4 1 5 . . 1 8 2 . 1 Parts Rejected 1 | . . . . . . . . . . . . 1 . . . . Parts Fused 3 | . . . . . . 1 1 . . . . . . 1 . . Data Loss (minor) 30 | . . . . . . 4 3 2 4 . . 4 8 5 . . Data Loss (major) 4 | . . . . . . 2 . . . . . . 1 1 . . Misfires 11 | . . . . . 1 1 1 2 3 . . . 3 . . . Alerts 6 | . . . . . . . 1 1 2 . . 1 1 . . . Weapon Failures 1 | . . . . . . . . . . . . 1 . . . . Overload Shots 8 | . . . . . . . . . . . . . 5 1 2 . Overflow Damage 4414 | . . 89 9 . 273 119 25 . 476 . . 451 806 584 177 1405 Projectiles 1653 | . . 89 . . 224 119 25 . 439 . . 415 213 123 6 . Explosions . | . . . . . . . . . . . . . . . . . Melee 2761 | . . . 9 . 49 . . . 37 . . 36 593 461 171 1405 Knockbacks . | . . . . . . . . . . . . . . . . . Impact . | . . . . . . . . . . . . . . . . . Kinetic . | . . . . . . . . . . . . . . . . . Secondary . | . . . . . . . . . . . . . . . . . Self-Inflicted Damage 10 | . . . . . 10 . . . . . . . . . . . Shots 1 | . . . . . 1 . . . . . . . . . . . Rammed . | . . . . . . . . . . . . . . . . . Targets Rammed . | . . . . . . . . . . . . . . . . . Kicked . | . . . . . . . . . . . . . . . . . Crushed . | . . . . . . . . . . . . . . . . . Highest Temperature 363 | . 23 18 58 . 363 294 332 13 219 . . 241 230 199 56 165 Average Temperature 111 | . 9 18 31 . 129 100 123 13 79 . . 107 96 106 56 77 Received Heat Transfer 2369 | . 309 267 132 . 363 201 . . 195 . 36 138 166 189 . 373 Effects 12 | . . . . . 5 4 3 . . . . . . . . . Shutdowns 1 | . . . . . 1 . . . . . . . . . . . Energy Bleed 4 | . . . . . 2 1 1 . . . . . . . . . Interference 6 | . . . . . 2 3 1 . . . . . . . . . Damage (minor) 1 | . . . . . . . 1 . . . . . . . . . Siege Activations . | . . . . . . . . . . . . . . . . . Martial Activations 9 | . . . . . . . . . . . . . 1 4 2 2 Total Turns 399 | . . . . . . . . . . . . . 6 149 27 217 Longest Duration 188 | . . . . . . . . . . . . . 6 62 19 188 Shielding Activations . | . . . . . . . . . . . . . . . . . Robots Disrupted 7 | . . . . . . 1 . . . . . 1 2 2 . 1 Combat Hostiles 7 | . . . . . . 1 . . . . . 1 2 2 . 1 Robots Corrupted . | . . . . . . . . . . . . . . . . . Combat Hostiles . | . . . . . . . . . . . . . . . . . Parts Fried 1 | . . . . . . . . . . . . 1 . . . . Impact Corruptions . | . . . . . . . . . . . . . . . . . Robots Melted 17 | . . 1 1 . 2 . . . 5 . . 7 . 1 . . Combat Hostiles 15 | . . 1 1 . 2 . . . 4 . . 6 . 1 . . Parts Melted 18 | . . 1 2 . 3 . . . 3 . . 7 1 1 . . Heat Transferred . | . . . . . . . . . . . . . . . . . Parts Sabotaged . | . . . . . . . . . . . . . . . . . Parts Stolen . | . . . . . . . . . . . . . . . . . Parts Stripped 58 | . . . . . . . . . . . . . 14 28 3 13 Power Chain Reactions . | . . . . . . . . . . . . . . . . . Alert | -11 -10 -10 -7 -7 -5 -5 -5 -5 -4 -4 -4 -3 -3 -2 -1 -1 ------- Run | Yrd Mat Sub Rec Scr Fac Upp Upp Zhi Pro Fac DSF Res Tes Res Acc Com Maximum Alert Level 2 | . . . . . 1 . . . . . . 2 1 1 2 1 Low Security (%) 60 | 100 100 . 100 . 84 . . . . 100 100 53 . 49 8 5 Level 1 36 | . . . . . 15 . . . . . . 25 99 50 13 94 Level 2 3 | . . . . . . . . . . . . 20 . . 78 . Level 3 . | . . . . . . . . . . . . . . . . . Level 4 . | . . . . . . . . . . . . . . . . . Level 5 . | . . . . . . . . . . . . . . . . . High Security . | . . . . . . . . . . . . . . . . . Max Security . | . . . . . . . . . . . . . . . . . Peak Influence 532 | . 92 . 68 . 296 . . . . 115 140 532 319 348 501 326 Initial 264 | . . . 16 . . . . . . 113 70 68 255 131 182 264 Average 137 | . 23 . 5 . 57 . . . . 113 113 217 258 200 420 254 Influence Increases 6504 | . 372 350 84 . 1066 374 110 . 700 2 70 894 794 1007 399 282 Destroy 0b10 Robot/C 4420 | . 220 240 60 . 620 340 100 . 620 . 60 580 500 600 260 220 Destroy 0b10 Robot/NC 170 | . 15 . . . 45 5 . . . . . 5 40 30 10 20 Destroy Leader 698 | . 46 20 . . 118 20 10 . 50 . 10 122 76 162 34 30 Allied During Kill 41 | . . . . . . 9 . . . . . . . . 32 . Successful Hack 319 | . 42 . 24 . 75 . . . . 2 . 33 36 68 27 12 Disable Machine 153 | . 18 . . . 45 . . . . . . . 72 18 . . Destroy Structure 223 | . 1 . . . 58 . . . . . . 34 40 69 21 . Lose Combat Pursuer 480 | . 30 90 . . 105 . . . 30 . . 120 30 60 15 . Influence Decreases 6228 | . 332 350 124 . 846 594 40 70 495 92 45 512 1047 928 276 477 Entered New Map 1202 | . . 22 24 . . 99 . 70 . 92 45 72 267 138 166 207 Time Decay 5006 | . 332 328 100 . 846 495 40 . 495 . . 440 770 790 110 260 Lost Part 10 | . . . . . . . . . . . . . . . . 10 Lost Ally 10 | . . . . . . . . . . . . . 10 . . . Squads Dispatched 32 | . 1 . . . 9 . . . 1 . 1 5 5 6 . 4 Investigation 10 | . 1 . . . 3 . . . . . . 2 1 1 . 2 Extermination 18 | . . . . . 6 . . . . . . 3 3 4 . 2 Reinforcement 3 | . . . . . . . . . . . 1 . 1 1 . . Assault 1 | . . . . . . . . . 1 . . . . . . . Garrison . | . . . . . . . . . . . . . . . . . Intercept . | . . . . . . . . . . . . . . . . . Searches Triggered . | . . . . . . . . . . . . . . . . . Construction Impeded . | . . . . . . . . . . . . . . . . . Haulers Reinforced . | . . . . . . . . . . . . . . . . . Active Scanning Responses . | . . . . . . . . . . . . . . . . . Cargo Convoy Interrupts . | . . . . . . . . . . . . . . . . . Stealth | -11 -10 -10 -7 -7 -5 -5 -5 -5 -4 -4 -4 -3 -3 -2 -1 -1 --------- Run | Yrd Mat Sub Rec Scr Fac Upp Upp Zhi Pro Fac DSF Res Tes Res Acc Com Distress Signals 4 | . . . . . . . . . . . . 1 . 3 . . Communications Jammed . | . . . . . . . . . . . . . . . . . Distress Signals . | . . . . . . . . . . . . . . . . . Times Spotted 279 | . 18 26 3 . 40 17 5 . 30 . 3 34 28 42 18 15 Peak Tracking Total 9 | . 3 4 2 . 7 7 5 . 5 . 3 8 3 5 9 6 Tactical Retreats 22 | . 2 3 . . 4 . . . 2 . . 5 2 3 1 . Traps | -11 -10 -10 -7 -7 -5 -5 -5 -5 -4 -4 -4 -3 -3 -2 -1 -1 ------- Run | Yrd Mat Sub Rec Scr Fac Upp Upp Zhi Pro Fac DSF Res Tes Res Acc Com Traps Triggered 11 | . 1 1 . . 3 . . . . . . 3 1 1 . 1 Indirectly . | . . . . . . . . . . . . . . . . . Trap Hack Attempts . | . . . . . . . . . . . . . . . . . Triggered . | . . . . . . . . . . . . . . . . . Disarmed 25 | . 5 . . . 10 . . . . . . . 10 . . . Reprogrammed . | . . . . . . . . . . . . . . . . . Reused . | . . . . . . . . . . . . . . . . . Traps Extracted . | . . . . . . . . . . . . . . . . . Installed . | . . . . . . . . . . . . . . . . . Triggered . | . . . . . . . . . . . . . . . . . Machines | -11 -10 -10 -7 -7 -5 -5 -5 -5 -4 -4 -4 -3 -3 -2 -1 -1 ---------- Run | Yrd Mat Sub Rec Scr Fac Upp Upp Zhi Pro Fac DSF Res Tes Res Acc Com Machines Disabled 25 | . 2 3 . . 5 1 . 2 1 . . . 9 2 . . Max in Single Turn 1 | . 1 1 . . 1 . . 1 1 . . . 1 1 . . Garrison Access 2 | . . . . . 1 . . . . . . . . 1 . . Machines Repaired . | . . . . . . . . . . . . . . . . . Machines Dismantled . | . . . . . . . . . . . . . . . . . Machines Sabotaged . | . . . . . . . . . . . . . . . . . Overloaded Fab Kills . | . . . . . . . . . . . . . . . . . Hacking | -11 -10 -10 -7 -7 -5 -5 -5 -5 -4 -4 -4 -3 -3 -2 -1 -1 --------- Run | Yrd Mat Sub Rec Scr Fac Upp Upp Zhi Pro Fac DSF Res Tes Res Acc Com Machines Accessed 74 | . 5 2 8 3 14 4 . 6 . 1 . 7 11 7 4 2 Terminals 47 | . 5 . 6 . 10 1 . . . 1 . 4 9 5 4 2 Fabricators 6 | . . . . . 1 . . . . . . 2 2 1 . . Repair Stations 1 | . . . . . 1 . . . . . . . . . . . Recycling Units 3 | . . . 2 . 1 . . . . . . . . . . . Scanalyzers . | . . . . . . . . . . . . . . . . . Garrison Access 3 | . . . . . 1 . . . . . . 1 . 1 . . Total Hacks 201 | . 12 12 26 4 34 15 . 19 . 1 . 18 32 17 7 4 Successful 133 | . 9 12 18 4 17 15 . 19 . 1 . 5 18 9 4 2 Failed 67 | . 3 . 7 . 17 . . . . . . 13 14 8 3 2 Catastrophic 12 | . 1 . . . 2 . . . . . . 1 4 2 . 2 Database Lockouts 1 | . . . 1 . . . . . . . . . . . . . Manual 95 | . 9 . 18 . 21 . . . . . . 7 22 12 3 3 Terminals 133 | . 12 . 23 . 25 7 . . . 1 . 12 29 13 7 4 Fabricators 12 | . . . . . 4 . . . . . . 3 3 2 . . Repair Stations 2 | . . . . . 2 . . . . . . . . . . . Recycling Units 5 | . . . 3 . 2 . . . . . . . . . . . Scanalyzers . | . . . . . . . . . . . . . . . . . Garrison Access 6 | . . . . . 1 . . . . . . 3 . 2 . . Terminal Hacks 98 | . 6 12 10 4 7 15 . 19 . 1 . 1 11 6 4 2 Record 36 | . . 11 . 3 . 13 . 7 . . . 1 . . . 1 Part Schematic 10 | . . . 2 . 1 . . 4 . . . . 2 1 . . Robot Analysis 4 | . . . . . . . . 4 . . . . . . . . Prototype ID Bank 7 | . . . . . 1 . . 4 . . . . 2 . . . Open Door 7 | . . . . 1 . 2 . . . . . . 1 . 3 . Open DSF 2 | . . . . . 1 . . . . 1 . . . . . . Level Access Points 2 | . . . . . . . . . . . . . 1 1 . . Branch Access Points 4 | . . . . . 1 . . . . . . . 1 1 1 . Emergency Access Points 1 | . . . . . . . . . . . . . . 1 . . Machine Index 1 | . . . . . . . . . . . . . . 1 . . Terminal Index 4 | . 1 . 1 . 1 . . . . . . . . . . 1 Repair Station Index 1 | . . . 1 . . . . . . . . . . . . . Garrison Index 1 | . . . . . . . . . . . . . 1 . . . Alert Level 2 | . 1 . 1 . . . . . . . . . . . . . Locate Traps 1 | . 1 . . . . . . . . . . . . . . . Disarm Traps 8 | . 3 . . . 2 . . . . . . . 3 . . . Security Status 1 | . . . 1 . . . . . . . . . . . . . Surveillance Status 1 | . . . 1 . . . . . . . . . . . . . Patrol Status 1 | . . . 1 . . . . . . . . . . . . . Investigation Status 1 | . . . 1 . . . . . . . . . . . . . Recall Assault 1 | . . . . . . . . . . . . . . 1 . . Hauler Manifests 1 | . . . 1 . . . . . . . . . . . . . Proto ID Catalog 1 | . . 1 . . . . . . . . . . . . . . Fabricator Hacks 8 | . . . . . 2 . . . . . . 1 3 2 . . Network Status 3 | . . . . . 1 . . . . . . 1 1 . . . Load Schematic 3 | . . . . . 1 . . . . . . . 1 1 . . Build 2 | . . . . . . . . . . . . . 1 1 . . Repair Station Hacks 2 | . . . . . 2 . . . . . . . . . . . Scan Component 1 | . . . . . 1 . . . . . . . . . . . Repair 1 | . . . . . 1 . . . . . . . . . . . Recycling Unit Hacks . | . . . . . . . . . . . . . . . . . Scanalyzer . | . . . . . . . . . . . . . . . . . Garrison Access Hacks 2 | . . . . . 1 . . . . . . . . 1 . . Seal Access 2 | . . . . . 1 . . . . . . . . 1 . . Unauthorized Hacks 23 | . 3 . 8 . 5 . . . . . . 3 4 . . . Terminals 19 | . 3 . 5 . 4 . . . . . . 3 4 . . . Assimilate 1 | . . . . . . . . . . . . . 1 . . . Botnet 18 | . 3 . 5 . 4 . . . . . . 3 3 . . . Fabricators . | . . . . . . . . . . . . . . . . . Repair Stations . | . . . . . . . . . . . . . . . . . Recycling Units 4 | . . . 3 . 1 . . . . . . . . . . . Monitor 1 | . . . 1 . . . . . . . . . . . . . Reject 1 | . . . 1 . . . . . . . . . . . . . Recyclers 1 | . . . 1 . . . . . . . . . . . . . Fedlink 1 | . . . . . 1 . . . . . . . . . . . Scanalyzers . | . . . . . . . . . . . . . . . . . Garrison Access . | . . . . . . . . . . . . . . . . . Data Cores Recovered 2 | . . . . . 1 . . . . . . . 1 . . . Used . | . . . . . . . . . . . . . . . . . Hacking Detections 49 | . 5 . 5 . 12 1 . . . . . 6 9 7 2 2 Full Trace Events 7 | . . . . . 2 . . . . . . 2 1 1 . 1 Feedback Events 1 | . . . . . 1 . . . . . . . . . . . Corruption 1 | . . . . . 1 . . . . . . . . . . . Feedback Blocked 1 | . . . . . 1 . . . . . . . . . . . Robot Schematics Acquired 3 | . . . . . . . . . . . . . 3 . . . Robots Built . | . . . . . . . . . . . . . . . . . Authchips . | . . . . . . . . . . . . . . . . . Time . | . . . . . . . . . . . . . . . . . Total Robot Build Rating . | . . . . . . . . . . . . . . . . . Part Schematics Acquired 13 | . . . 2 . 1 . . 4 . . . . 5 1 . . Parts Built 2 | . . . . . . . . . . . . . 1 1 . . Authchips . | . . . . . . . . . . . . . . . . . Time 356 | . . . . . . . . . . . . . 152 204 . . Total Part Build Rating 13 | . . . . . . . . . . . . . 5 8 . . Parts Repaired 1 | . . . . . 1 . . . . . . . . . . . Time 19 | . . . . . 19 . . . . . . . . . . . Parts Recycled . | . . . . . . . . . . . . . . . . . Recycled Matter . | . . . . . . . . . . . . . . . . . Retrieved Matter . | . . . . . . . . . . . . . . . . . Retrieved Components . | . . . . . . . . . . . . . . . . . Parts Scanalyzed . | . . . . . . . . . . . . . . . . . Part Schematics Acquired . | . . . . . . . . . . . . . . . . . Parts Damaged . | . . . . . . . . . . . . . . . . . Bothacking | -11 -10 -10 -7 -7 -5 -5 -5 -5 -4 -4 -4 -3 -3 -2 -1 -1 ------------ Run | Yrd Mat Sub Rec Scr Fac Upp Upp Zhi Pro Fac DSF Res Tes Res Acc Com Used RIF Installer . | . . . . . . . . . . . . . . . . . Robots Hacked . | . . . . . . . . . . . . . . . . . Non-combat . | . . . . . . . . . . . . . . . . . Combat . | . . . . . . . . . . . . . . . . . Robot Hacks Applied . | . . . . . . . . . . . . . . . . . Relay Couplers Released . | . . . . . . . . . . . . . . . . . Fabnet Peak Effective % . | . . . . . . . . . . . . . . . . . Robots Rewired . | . . . . . . . . . . . . . . . . . Allies Hacked . | . . . . . . . . . . . . . . . . . Hacks Repelled . | . . . . . . . . . . . . . . . . . Allies | -11 -10 -10 -7 -7 -5 -5 -5 -5 -4 -4 -4 -3 -3 -2 -1 -1 -------- Run | Yrd Mat Sub Rec Scr Fac Upp Upp Zhi Pro Fac DSF Res Tes Res Acc Com Total Allies 6 | . . . . . . 2 . . . . . . 1 . 3 . Largest Group 3 | . . . . . . 2 . . . . . . 1 . 3 . Highest-Rated Group 379 | . . . . . . 62 . . . . . . 10 . 379 . Highest-Rated Ally 135 | . . . . . . 31 . . . . . . 10 . 135 . Total Orders . | . . . . . . . . . . . . . . . . . Ally Attacks 31 | . . . . . . 19 . . . . . . . . 12 . Total Damage 643 | . . . . . . 308 . . . . . . . . 335 . Kills 10 | . . . . . . 5 . . . . . . . . 5 . Allies Corrupted . | . . . . . . . . . . . . . . . . . Allies Melted . | . . . . . . . . . . . . . . . . . Intel | -11 -10 -10 -7 -7 -5 -5 -5 -5 -4 -4 -4 -3 -3 -2 -1 -1 ------- Run | Yrd Mat Sub Rec Scr Fac Upp Upp Zhi Pro Fac DSF Res Tes Res Acc Com Active Infowar (turns) 21157 | . 1022 3688 937 2647 2962 1873 1051 530 1599 5 58 880 1559 1586 232 528 Optics 380 | . 380 . . . . . . . . . . . . . . . Terrain 21157 | . 1022 3688 937 2647 2962 1873 1051 530 1599 5 58 880 1559 1586 232 528 Machine Analysis 245 | . . . . . 241 4 . . . . . . . . . . Robot Analysis Total 4 | . . . . . . . . 4 . . . . . . . . Derelict Logs Recovered 8 | . . 2 . 1 . 1 1 . 3 . . . . . . . Drone Launches . | . . . . . . . . . . . . . . . . . Drone Recoveries . | . . . . . . . . . . . . . . . . . Exploration | -11 -10 -10 -7 -7 -5 -5 -5 -5 -4 -4 -4 -3 -3 -2 -1 -1 ------------- Run | Yrd Mat Sub Rec Scr Fac Upp Upp Zhi Pro Fac DSF Res Tes Res Acc Com Turns Passed 21265 | 47 1043 3688 937 2647 2962 1913 1051 530 1599 5 58 880 1559 1586 232 528 Spaces Moved 12032 | 34 525 2047 545 1461 1525 1127 646 193 877 4 27 620 995 1008 155 243 Core 39 | 14 . . . . . . . 25 . . . . . . . . Treads 8958 | 20 525 2047 545 1461 1525 1127 646 167 877 4 14 . . . . . Legs 3034 | . . . . . . . . . . . 13 620 995 1008 155 243 Wheels . | . . . . . . . . . . . . . . . . . Hover . | . . . . . . . . . . . . . . . . . Flight 1 | . . . . . . . . 1 . . . . . . . . Fastest Speed 50 | 50 160 160 160 160 160 160 160 160 160 160 90 90 90 103 110 110 Average Speed 147 | 116 160 160 160 160 160 160 160 258 160 160 159 90 97 106 116 135 Slowest Speed 900 | 160 160 160 160 160 160 160 160 900 160 160 360 90 206 220 220 220 Overloaded Moves 87 | . . . . . . . . . . . . . 1 23 7 56 Propulsion Burnouts . | . . . . . . . . . . . . . . . . . Robots Hopped . | . . . . . . . . . . . . . . . . . Potential Cave-ins . | . . . . . . . . . . . . . . . . . Cave-ins Triggered . | . . . . . . . . . . . . . . . . . Exploration Rate (%) 57 | 4 73 91 96 90 39 97 72 62 94 . 34 25 98 28 5 9 Regions Visited 16 Branch Regions 9 Pre-discovered Areas 4 | . . . . . . 1 . 3 . . . . . . . . Known Exits Taken 14 | . 1 1 1 1 1 1 1 1 1 1 . 1 1 1 1 . Unknown Exits Taken 1 | 1 . . . . . . . . . . . . . . . . Scrap Searched 20 | . . 10 . 2 . 2 4 . 2 . . . . . . . Spaces Dug 76 | . . . . . 22 . . . . . . 8 20 22 4 . Terrain Destroyed 110 | . . 4 . . 29 4 2 . 6 . . 17 21 23 4 . Melee 73 | . . . . . 21 . . . . . . 8 20 21 3 . Projectile 37 | . . 4 . . 8 4 2 . 6 . . 9 1 2 1 . AOE . | . . . . . . . . . . . . . . . . . Terrain Rammed . | . . . . . . . . . . . . . . . . . Walls Destroyed . | . . . . . . . . . . . . . . . . . Machines Disabled . | . . . . . . . . . . . . . . . . . Actions | -11 -10 -10 -7 -7 -5 -5 -5 -5 -4 -4 -4 -3 -3 -2 -1 -1 --------- Run | Yrd Mat Sub Rec Scr Fac Upp Upp Zhi Pro Fac DSF Res Tes Res Acc Com Total 15066 | 41 634 2343 600 1770 1954 1209 658 225 1031 3 37 883 1550 1500 197 431 Wait 1591 | . 27 128 13 306 214 16 2 2 43 . . 87 353 300 7 93 Move 12016 | 33 524 2046 544 1460 1524 1126 645 192 876 3 26 619 994 1007 154 243 Hop . | . . . . . . . . . . . . . . . . . Pick Up 72 | 3 8 9 6 . 17 4 . 2 5 . . 2 7 3 1 5 Fast Attach 50 | 2 . 4 1 1 9 1 . 11 1 . 4 4 9 3 . . Attach 21 | 3 3 1 3 1 7 1 . . . . . . 1 . . 1 Detach . | . . . . . . . . . . . . . . . . . Swap 23 | . 2 9 . 1 1 1 . 2 . . . 1 3 3 . . Drop 90 | . 5 10 3 1 16 4 . 13 5 . 2 5 16 6 . 4 Fire 347 | . 47 61 7 . 59 21 6 . 44 . 4 60 21 12 5 . Melee 442 | . 1 19 6 . 53 12 1 . 20 . 1 41 102 106 20 60 Ram . | . . . . . . . . . . . . . . . . . Kick . | . . . . . . . . . . . . . . . . . Crush . | . . . . . . . . . . . . . . . . . Escape Stasis . | . . . . . . . . . . . . . . . . . Rewire . | . . . . . . . . . . . . . . . . . Trap . | . . . . . . . . . . . . . . . . . Miscellaneous 414 | . 17 56 17 . 54 23 4 3 37 . . 64 44 60 10 25 Route ------- -11/Scrapyard -10/Materials (discovered 4 exits: *Mat x2 / [*Min] / *Sub) -10/Subcaves (discovered 3 exits: *Mat x2 / *Rec) -7/Recycling (discovered 2 exits: *Fac / *Scr) -7/Scraptown (discovered 2 exits: *Fac x2) -5/Factory (discovered 3 exits: *Fac / *Upp x2) -5/Upper Caves -5/Upper Caves (discovered 2 exits: *Fac / *Zhi) -5/Zhirov -4/Proximity Caves -4/Factory (discovered 4 exits: Res / Upp / Arm / DSF) -4/DSF -3/Research (discovered 3 exits: *Res / *Tes x2) -3/Testing -2/Research (discovered 5 exits: *Acc x3 / Qua x2) -1/Access (discovered 2 exits: Sur / *Com) -1/Command History --------- Turn | Location | Event 1 | -11/Scrapyard | Upgraded with Propulsion slot (x1) 1 | -11/Scrapyard | Upgraded with Utility slot (x1) 1 | -11/Scrapyard | Upgraded with Weapon slot (x1) 7 | -11/Scrapyard | Discovered new exit (range 15) 48 | -11/Scrapyard | Entered Materials 401 | -10/Materials | Build established: Skirmisher 448 | -10/Materials | Discovered new exit (range 12) 845 | -10/Materials | Discovered new exit (range 11) 860 | -10/Materials | Identified exit to Materials 977 | -10/Materials | Discovered new exit (range 14) 1010 | -10/Materials | Identified exit to Subcaves 1021 | -10/Materials | Discovered exit to Materials (range 14) 1050 | -10/Materials | Reached level 2 1091 | -10/Materials | Entered Subcaves 1093 | -10/Subcaves | Shifting Twisted Machinery released Sub. Beam Cannon 1152 | -10/Subcaves | Visited 4L-MR0's lab 1171 | -10/Subcaves | Found Powered Cannon 1406 | -10/Subcaves | Ambushed by Subdweller buried in earth 1406 | -10/Subcaves | Discovered new exit (range 9) 1421 | -10/Subcaves | Shifting Twisted Machinery released Mak. System Restoration Module 1425 | -10/Subcaves | Identified exit to Materials 1434 | -10/Subcaves | Upgraded with Utility slot (x1) 1434 | -10/Subcaves | Upgraded with Weapon slot (x1) 1437 | -10/Subcaves | Attached Powered Cannon, gained temporary slot: Power 1593 | -10/Subcaves | Reached level 3 1620 | -10/Subcaves | Upgraded with Utility slot (x1) 2018 | -10/Subcaves | Shifting Twisted Machinery released Sub. Monowheel 2198 | -10/Subcaves | Shifting Twisted Machinery released Sub. Laser 2349 | -10/Subcaves | Discovered exit to Materials (range 8) 2354 | -10/Subcaves | Shifting Twisted Machinery released Sub. Monowheel 2632 | -10/Subcaves | Learned location of 1 exit from Materials 2788 | -10/Subcaves | Learned Materials terminal intel 2863 | -10/Subcaves | Build established: Assassin 2998 | -10/Subcaves | Shifting Twisted Machinery released Sub. Beam Cannon 3517 | -10/Subcaves | Build established: Skirmisher 4082 | -10/Subcaves | Build established: Assassin 4211 | -10/Subcaves | Visited Clippyterm 4216 | -10/Subcaves | Learned Factory emergency access door positions 4526 | -10/Subcaves | Discovered new exit (range 10) 4777 | -10/Subcaves | Identified exit to Recycling 4779 | -10/Subcaves | Entered Recycling 4781 | -7/Recycling | Reached level 4 4781 | -7/Recycling | Reached level 5 4781 | -7/Recycling | Reached level 6 4781 | -7/Recycling | Reached level 7 4792 | -7/Recycling | Reached level 8 4809 | -7/Recycling | Upgraded with Utility slot (x4) 4891 | -7/Recycling | Scanned before Scraplab entrance 5112 | -7/Recycling | Build established: Hacker-Assassin 5377 | -7/Recycling | Discovered new exit (range 16) 5700 | -7/Recycling | Entered Scraplab 5713 | -7/Recycling | Discovered new exit (range 2) 5713 | -7/Recycling | Identified exit to Scraptown 5716 | -7/Recycling | Entered Scraptown 6148 | -7/Scraptown | Discovered new exit (range 5) 6161 | -7/Scraptown | Identified exit to Factory 6196 | -7/Scraptown | Scanned Subdweller tech in exchange for log data 6201 | -7/Scraptown | Learned Research terminal intel 6256 | -7/Scraptown | Visited Shadow of the Wyrm 6626 | -7/Scraptown | Visited SPCMW 6666 | -7/Scraptown | Visited Spacefarers 6747 | -7/Scraptown | Visited Cyclists 6763 | -7/Scraptown | Heard Great Nut preacher, LISTEN AND RECITE! 6782 | -7/Scraptown | Visited Cave Peace 6840 | -7/Scraptown | Visited Fellowship of the Rings 6882 | -7/Scraptown | Visited Junk Repository 6941 | -7/Scraptown | Visited UFD Registry 6941 | -7/Scraptown | Registered with UFD as "Cogblaster" 6941 | -7/Scraptown | Reached level 9 7234 | -7/Scraptown | Visited Research Penetration Think Tank 7269 | -7/Scraptown | Visited Observation Area 7387 | -7/Scraptown | Visited Curators Association 7432 | -7/Scraptown | Visited Supply Room 7478 | -7/Scraptown | Visited Abandonware Association 7530 | -7/Scraptown | Visited Derelict Rescue Squad 7563 | -7/Scraptown | Visited Science Testing Area 7603 | -7/Scraptown | Visited Analyses Database 7637 | -7/Scraptown | Visited Junk Repository 7725 | -7/Scraptown | Delivered Scrap Shield to a Scientist 7861 | -7/Scraptown | Visited Sword Containment 8254 | -7/Scraptown | Met Optimus 8254 | -7/Scraptown | Accepted into 0bPrime 8360 | -7/Scraptown | Discovered exit to Factory (range 3) 8363 | -7/Scraptown | Entered Factory 8365 | -5/Factory | Reached level 10 8365 | -5/Factory | Reached level 11 8365 | -5/Factory | Reached level 12 8365 | -5/Factory | Reached level 13 8365 | -5/Factory | Reached level 14 8365 | -5/Factory | Reached level 15 8396 | -5/Factory | Upgraded with Utility slot (x1) 8521 | -5/Factory | Discovered new exit (range 14) 8561 | -5/Factory | Identified exit to Upper Caves 8743 | -5/Factory | Repaired Particle Charger 9436 | -5/Factory | Loaded intel: 8 recycling unit locations 9596 | -5/Factory | Reached level 16 9870 | -5/Factory | Discovered new exit (range 12) 10680 | -5/Factory | Reached level 17 10680 | -5/Factory | Upgraded with Propulsion slot (x1) 10680 | -5/Factory | Upgraded with Utility slot (x1) 10960 | -5/Factory | Reached level 18 11325 | -5/Factory | Entered Upper Caves 11326 | -5/Upper Caves | Encountered a Warlord checkpoint 11327 | -5/Upper Caves | UFD Scientist delivered a prototype 11330 | -5/Upper Caves | Found Prototype Protection 11330 | -5/Upper Caves | Identified Enh. Scrap Shield 11339 | -5/Upper Caves | Learned 12 Factory zone layouts 11389 | -5/Upper Caves | Reached level 19 11474 | -5/Upper Caves | Upgraded with Utility slot (x1) 11850 | -5/Upper Caves | Entered an active Warlord outpost 11857 | -5/Upper Caves | A Commander dispatched an escort 11874 | -5/Upper Caves | Learned location of 1 exit from Factory 11914 | -5/Upper Caves | Attracted the attention of an 0b10 checkpoint 12013 | -5/Upper Caves | Discovered new exit (range 16) 12035 | -5/Upper Caves | Identified exit to Upper Caves 12114 | -5/Upper Caves | Attracted the attention of an 0b10 base 12131 | -5/Upper Caves | Reached level 20 12169 | -5/Upper Caves | Learned location of 1 exit from Proximity Caves 12169 | -5/Upper Caves | Learned 8 Research zone layouts 12169 | -5/Upper Caves | Learned Factory trap positions 12169 | -5/Upper Caves | Learned Factory emergency access door positions 12169 | -5/Upper Caves | Learned Research terminal intel 13238 | -5/Upper Caves | Entered another Upper Caves area 13238 | -5/Upper Caves | Accompanied by 2 allies 13239 | -5/Upper Caves | Discovered new exit (range 6) 13239 | -5/Upper Caves | Commander's escort returned to base 13239 | -5/Upper Caves | Commander's escort returned to base 13250 | -5/Upper Caves | Identified exit to Factory 14236 | -5/Upper Caves | Discovered new exit (range 12) 14254 | -5/Upper Caves | Identified exit to Zhirov 14289 | -5/Upper Caves | Entered Zhirov 14289 | -5/Zhirov | Discovered new exit (range 3) 14318 | -5/Zhirov | Met Zhirov 14358 | -5/Zhirov | Learned location of Quarantine (-2) 14358 | -5/Zhirov | Learned location of Testing (-3) 14358 | -5/Zhirov | Learned location of Command (-1) 14389 | -5/Zhirov | Zhirov requested help retrieving the SGEMP Prototype 14418 | -5/Zhirov | Found Alien Artifact 14418 | -5/Zhirov | Identified Integrated Dissipator 14418 | -5/Zhirov | Installed Integrated Dissipator, increased core heat dissipation (+20) 14454 | -5/Zhirov | Found Alien Artifact 14814 | -5/Zhirov | Identified exit to Proximity Caves 14819 | -5/Zhirov | Entered Proximity Caves 14821 | -4/Proximity Caves | Reached level 21 14821 | -4/Proximity Caves | Upgraded with Propulsion slot (x1) 14838 | -4/Proximity Caves | Forged Quantum Companion 14886 | -4/Proximity Caves | Attracted the attention of an 0b10 checkpoint 14887 | -4/Proximity Caves | Reached level 22 15375 | -4/Proximity Caves | Spotted B-86 Titan 15377 | -4/Proximity Caves | Destroyed B-86 Titan 15391 | -4/Proximity Caves | Learned 4 Research zone layouts 15956 | -4/Proximity Caves | Learned Research emergency access door positions 16020 | -4/Proximity Caves | Reached level 23 16155 | -4/Proximity Caves | Learned Research interactive machine intel 16275 | -4/Proximity Caves | Attracted the attention of an 0b10 outpost 16303 | -4/Proximity Caves | Destroyed 7 combat bots 16418 | -4/Proximity Caves | Entered Factory 16419 | -4/Factory | Identified exit to Upper Caves 16420 | -4/Factory | Identified exit to Research 16420 | -4/Factory | Reached level 24 16421 | -4/Factory | Identified exit to Armory 16422 | -4/Factory | Loaded intel: 78 trap records 16422 | -4/Factory | Identified exit to DSF 16423 | -4/Factory | Entered DSF 16442 | -4/DSF | Discovered exit to Research (range 7) 16451 | -4/DSF | Additional patrols routed to DSF 16481 | -4/DSF | Entered Research 16483 | -3/Research | Reached level 25 16483 | -3/Research | Reached level 26 16484 | -3/Research | Loaded intel: 44 interactive machine locations 16485 | -3/Research | Loaded intel: 21 terminal locations 16493 | -3/Research | Upgraded with Utility slot (x1) 16661 | -3/Research | Spotted B-86 Titan 16662 | -3/Research | Destroyed B-86 Titan 16684 | -3/Research | Allied Derelicts emerged from ambush trap array 16722 | -3/Research | Discovered new exit (range 16) 16741 | -3/Research | Allied Derelicts emerged from ambush trap array 16925 | -3/Research | Discovered new exit (range 16) 16926 | -3/Research | Identified exit to Research 16945 | -3/Research | P-80 Master assimilated allied YJ-DGH(g) 16945 | -3/Research | P-80 Master assimilated allied P6-022(g) 16947 | -3/Research | P-80 Master assimilated allied CF-RYC(g) 16950 | -3/Research | Reached level 27 16986 | -3/Research | Destroyed 11 combat bots 17076 | -3/Research | Upgraded with Utility slot (x1) 17320 | -3/Research | Discovered new exit (range 7) 17327 | -3/Research | Identified exit to Testing 17361 | -3/Research | Entered Testing 17363 | -3/Testing | Reached level 28 17444 | -3/Testing | Upgraded with Weapon slot (x1) 17600 | -3/Testing | Found Prototype Device 17600 | -3/Testing | Identified Exp. Thermal Defense Suite 17745 | -3/Testing | Build established: Hacker-Gladiator 17770 | -3/Testing | Spotted Striker 17771 | -3/Testing | Spotted Striker 17773 | -3/Testing | Spotted Alpha 7 17787 | -3/Testing | Destroyed Striker 17795 | -3/Testing | Destroyed Striker 17798 | -3/Testing | Destroyed Alpha 7 17820 | -3/Testing | Stole the SGEMP Prototype 17876 | -3/Testing | Found Prototype Hackware 17876 | -3/Testing | Identified Exp. Hacking Suite 17881 | -3/Testing | Found Exp. Hacking Suite 17912 | -3/Testing | System corruption reached 10% 18528 | -3/Testing | Fabricated Multireflex Exoskeleton (x1) 18742 | -3/Testing | Reached level 29 18920 | -3/Testing | Entered Research 18921 | -2/Research | Loaded intel: 23 terminal locations 18922 | -2/Research | Reached level 30 19266 | -2/Research | Found Adv. Force Booster 19417 | -2/Research | Found Prototype Hackware 19417 | -2/Research | Identified Exp. System Shield 20009 | -2/Research | Identified exit to Access 20009 | -2/Research | Identified exit to Quarantine 20073 | -2/Research | Reached level 31 20333 | -2/Research | Fabricated Enh. Multireflex Exoskeleton (x1) 20506 | -2/Research | Entered Access 20508 | -1/Access | Loaded intel: 128 machine locations 20508 | -1/Access | Loaded intel: 72 trap records 20508 | -1/Access | Identified exit to Surface 20508 | -1/Access | Discovered exit to Surface (range 137) 20508 | -1/Access | Identified exit to Command 20508 | -1/Access | Discovered exit to Command (range 76) 20508 | -1/Access | Reached level 32 20508 | -1/Access | Delivered the SGEMP Prototype to Zhirov 20508 | -1/Access | Zhirov transferred Access data 20508 | -1/Access | Reached level 33 20555 | -1/Access | Zhirov warped through subspace 20610 | -1/Access | Destroyed 7 combat bots 20738 | -1/Access | Entered Command 20740 | -1/Command | Reached level 34 21233 | -1/Command | Spotted M Guard 21234 | -1/Command | Spotted Combat Programmer 21234 | -1/Command | Spotted M Guard 21234 | -1/Command | Spotted Combat Programmer 21251 | -1/Command | Core integrity fell below 50% 21253 | -1/Command | Destroyed Combat Programmer 21258 | -1/Command | Destroyed Combat Programmer 21260 | -1/Command | Core integrity fell below 20% 21266 | -1/Command | Destroyed by M Guard with Ragnarok Missile Launcher Last Messages --------------- Quantum Companion releases a shadow of itself that zips off towards M Guard. 21258_ System corrupted: Energy discharge (-161). 21258_ Combat Programmer sundered. 21258_ Combat Programmer fries systems beyond repair. 21258_ Combat Programmer destroyed. 21259_ K-01 Serf collects debris. 21260_ The unstable cave ceiling collapses. Quantum Companion releases a shadow of itself that zips off towards M Guard. 21261_ Deflected attack with Molecular Scythe. Quantum Companion releases a shadow of itself that zips off towards M Guard. 21262_ Deflected attack with Molecular Scythe. 21262_ P-80 Master resets P-80 Master, system corruption cleaned. 21262_ K-01 Serf collects debris. 21263_ Deflected attack with Molecular Scythe. 21265_ The unstable cave ceiling collapses. 21265_ Deflected attack with Molecular Scythe. 21265_ Dropped Protomatter-60. Map ----- +----------------------------------------------------+ | ?????????????????????????????????????????????????? | | ?????????????????????????????????????????????????? | | ?????????????????????????????????????????????????? | | ?????????????????????????????????????????????????? | | ?????????????????????????????????????????????????? | | ?????????????????????????????????????????????????? | | ?????????????????????????????????????????????????? | | ?????????????????????????????????????????????????? | | ?????????????????????????????????????????????????? | | ?????????????????????????????????????????????????? | | ?????????????????????????????????????????????????? | | ?????????????????????????????????????????????????? | | ?????????????????????????????????????????????????? | | ?????????????????????????????????????????????????? | | ?????????????????????????????????????????????????? | | ?????????????????????????????????????????????????? | | ?????????????????????????????????????????????????? | | ?????????????????????????????????????????????????? | | ?????????????????????????????????????????????????? | | ????????????????????????#####?#####?#####?#####??? | | ??????????????????????### ### #?#!!!#?#[*=#??? | | ?????????????????#+++## W W ###= !### %*#### | | ?????????????????# ! !=! + | | ?????????????????# Y ! + | | ?????????????????# ! p / | | ?????????????????# Y @ p / | | ?????????????????# =p / | | ?????????????????# # # ]k*###= #### | | ?????????????????###??# # !#?# #??# | | ??????????????????????# # # ##?#####??# | | ??????????????????????### # #????????# | | ????????????????????????# ## ####????????# | | ????????????????????????# ## # #??????????# | | ????????????????????????# ### #??????????# | | ????????????????????????# #??# # # #?????????# | | ????????????????????????# #???######? #????????# | | ????????????????????????# #???????????#????????# | | ????????????????????????# #????????????????????# | | ????????????????????????# #????????????????????# | | ????????????????????????# #????????????????????# | | ????????????????????????? ?????????????????????# | | ?????????????????????????????????????????????????# | | ?????????????????????????????????????????????????? | | ?????????????????????????????????????????????????? | | ?????????????????????????????????????????????????? | | ??????????????????????????????????????????????#### | | ??????????????????????????????????????????????# | | ??????????????????????????????????????????????# | | ??????????????????????????????????????????????# # | | ??????????????????????????????????????????????# # | +----------------------------------------------------+ Best States ------------- Heat Dissipation 81 Energy Generation 59 Energy Capacity 490 Matter Stores 300 Matter Capacity 300 Sight Range 18 Robot Scan Range 24 Terrain Scan Range 16 Terrain Scan Density 410 Power Amplification 30 Armor Coverage 800 Resistance: KI 45 Resistance: TH 50 Resistance: EX 40 Resistance: EM 20 Resistance: I 20 Resistance: S 20 Resistance: P 20 Point Defense Rating 240 Melee Speed Boost 50 Evasion (%) 57 Recoil Reduction 4 Particle Charging 30 Force Boost 40 Offensive Hacking 42 Defensive Hacking 16 Authchip Count 3 Item Schematics ----------------- Imp. Signal Interpreter | -7/Recycling | Hacked ECM Suite | -7/Recycling | Hacked Cld. VTOL Module | -5/Factory | Hacked Assault Drone Bay | -5/Zhirov | Free Exp. Heat Sink | -5/Zhirov | Free Exp. Optical Array | -5/Zhirov | Free Imp. Arc Thrower | -5/Zhirov | Free Hvy. Tesla Rifle | -3/Testing | Archive Imp. Matter Compressor | -3/Testing | Archive Hvy. Shield Leg | -3/Testing | Hacked Multireflex Exoskeleton | -3/Testing | Hacked Hvy. Proton Missile Launcher | -3/Testing | Archive Enh. Multireflex Exoskeleton | -2/Research | Hacked Robot Schematics ------------------ R-10 Processor | -3/Testing | Archive A-27 Freighter | -3/Testing | Archive K-01 Serf | -3/Testing | Archive Fabricated ------------ Multireflex Exoskeleton | x1 | -3/Testing Enh. Multireflex Exoskeleton | x1 | -2/Research Repaired ---------- Particle Charger | 56% | -5/Factory Alien Tech Used ----------------- Integrated Dissipator Achievements -------------- Special Delivery Watch This! Challenges ------------ None RPGLIKE | -11 -10 -10 -7 -7 -5 -5 -5 -5 -4 -4 -4 -3 -3 -2 -1 -1 --------- Run | Yrd Mat Sub Rec Scr Fac Upp Upp Zhi Pro Fac DSF Res Tes Res Acc Com Levels Raised 33 | . 1 1 5 1 9 2 . . 3 1 . 3 2 2 2 1 XP Earned 54822 | 4000 1580 2300 7052 1419 13800 2389 728 453 4384 1049 777 4116 2118 3221 3537 1899 XP Spent 51415 | 3875 . 2700 7800 1550 11765 4775 . . 2920 . . 7300 3180 1000 4550 . Upgrades 84 | 13 . 3 5 7 17 7 . . 8 . . 2 14 1 7 . Propulsion Slot 3 | 1 . . . . 1 . . . 1 . . . . . . . Utility Slot 12 | 1 . 2 4 . 2 1 . . . . . 2 . . . . Weapon Slot 3 | 1 . 1 . . . . . . . . . . 1 . . . Core Integrity 10 | . . . . . . . . . . . . . 10 . . . Heat Dissipation 6 | . . . . . . . . . 4 . . . 2 . . . Energy Generation 3 | . . . . 1 2 . . . . . . . . . . . Energy Storage 2 | . . . . . 2 . . . . . . . . . . . Inventory Capacity 5 | 3 . . . . . . . . . . . . . 1 1 . Sensor Range 12 | 7 . . . . . 5 . . . . . . . . . . Terrain Scan Density 4 | . . . . . 4 . . . . . . . . . . . Ranged Accuracy 1 | . . . 1 . . . . . . . . . . . . . Melee Accuracy 7 | . . . . . . 1 . . . . . . . . 6 . KI Resistance % 4 | . . . . 2 2 . . . . . . . . . . . TH Resistance % 4 | . . . . 1 3 . . . . . . . . . . . EX Resistance % 4 | . . . . 3 1 . . . . . . . . . . . TH Damage % 4 | . . . . . . . . . 3 . . . 1 . . . Protomatter Created 5164 | . 108 387 126 . 638 354 23 . 741 . . 579 869 742 135 462 Integrity Restored 8040 | . 320 943 315 . 1014 428 65 54 730 . . 1311 869 1278 204 509 Core 5422 | . 320 644 146 . 770 253 52 . 369 . . 810 683 855 204 316 Parts 2618 | . . 299 169 . 244 175 13 54 361 . . 501 186 423 . 193 Protomatter Decayed 1952 | . . 93 21 . 221 184 . . 412 . . 394 408 92 127 . Game ------ Seed ScrapMobileDisintegrator Manual? 0 Play Time 02:37:20 Cumulative 127.4 hours Start 2025.10.01 @ 19:19:28 End 2025.10.01 @ 21:58:28 Sessions 1 Manual Loads 0 Difficulty Adventurer Special Mode Winter2019/RPGLIKE Game No. 96 Rogue 70 Adventurer 26 Explorer 0 Win Type - Total 5 Types 2/0/2/1/0/0/0/0/0/0 Lore% 58 Gallery% 44 Achievement% 53 Wizard Run 0 Options --------- Layout 0 ASCII 0 Keyboard 0 Movement Mouse Keybinds 0 Fullscreen 1 Font 24/Smallcaps Map View 76x56 Zoom Use 15% Tactical HUD 1 Map Filters NONE Filters NONE Steam 1 RUN: edcfa380-ffb4-46ab-b568-2acfb6b9e2c7